fUSD/lending_fUSD_20250930
["ID","MTS","AMOUNT","RATE_DAILY","PERIOD"]
[388513068,1759227040079,-150.0,0.00019467,2]
[388513069,1759227040089,-150.0,0.00019467,2]
[388513070,1759227040099,-150.0,0.00019467,2]
[388513071,1759227040109,-150.0,0.00019467,2]
[388513072,1759227040119,-500.0,0.00019467,2]
[388513073,1759227040128,-500.0,0.00019467,2]
[388513074,1759227040138,-772.0,0.00019468,2]
[388513075,1759227040147,-150.0,0.00019471,2]
[388513076,1759227040156,-150.0,0.00019471,2]
[388513077,1759227040166,-150.76919386,0.00019471,2]
[388513078,1759227040176,-150.0,0.00019471,2]
[388513079,1759227040184,-150.0,0.00019471,2]
[388513080,1759227040193,-150.0,0.00019471,2]
[388513081,1759227040202,-150.0,0.00019471,2]
[388513082,1759227040211,-150.0,0.00019471,2]
[388513083,1759227040219,-150.0,0.00019471,2]
[388513084,1759227040229,-150.0,0.00019471,2]
[388513085,1759227040238,-150.0,0.00019471,2]
[388513086,1759227040247,-159.1182798,0.00019474,2]
[388513087,1759227040256,-1209.6,0.00019475,2]
[388513088,1759227040266,-1711.51,0.00019475,2]
[388513089,1759227040275,-500.0,0.00019475,2]
[388513090,1759227040285,-672.83,0.00019475,2]
[388513091,1759227040294,-519.78,0.00019475,2]
[388513092,1759227040304,-1312.53,0.00019475,2]
[388513093,1759227040313,-500.0,0.00019475,2]
[388513094,1759227040323,-2117.87,0.00019475,2]
[388513095,1759227040333,-3425.09,0.00019475,2]
[388513096,1759227040342,-676.62,0.00019475,2]
[388513097,1759227040351,-500.0,0.00019475,2]
[388513098,1759227040365,-500.0,0.00019475,2]
[388513099,1759227040374,-500.0,0.00019475,2]
[388513100,1759227040382,-713.3,0.00019475,2]
[388513101,1759227040392,-2689.12,0.00019475,2]
[388513102,1759227040402,-3632.1217051,0.00019476,2]
[388513103,1759227040411,-2167.7454204,0.00019476,2]
[388513104,1759227040421,-3777.8324907,0.00019476,2]
[388513105,1759227040431,-150.0,0.00019479,4]
[388513106,1759227040442,-150.0,0.00019479,4]
[388513107,1759227040451,-150.0,0.00019479,4]
[388513108,1759227040461,-200.0,0.00019479,4]
[388513109,1759227040470,-208.273101,0.00019479,4]
[388513110,1759227040480,-150.0,0.00019479,4]
[388513111,1759227040489,-152.44145699,0.00019479,4]
[388513112,1759227040500,-150.0,0.00019479,4]
[388513113,1759227040510,-154.21320852,0.00019479,4]
[388513114,1759227040520,-1000.0,0.00019482,2]
[388513115,1759227040530,-500.0,0.00019483,2]
[388513117,1759227040540,-500.0,0.00019483,2]
[388513118,1759227040550,-500.0,0.00019483,2]
[388513119,1759227040559,-2553.59,0.00019483,2]
[388513120,1759227040568,-500.0,0.00019483,2]
[388513121,1759227040577,-601.14,0.00019483,2]
[388513122,1759227040586,-500.0,0.00019483,2]
[388513123,1759227040596,-500.0,0.00019483,2]
[388513124,1759227040606,-1126.92,0.00019483,2]
[388513125,1759227040616,-500.0,0.00019483,2]
[388513126,1759227040626,-500.0,0.00019483,2]
[388513127,1759227040636,-500.0,0.00019483,2]
[388513128,1759227040645,-540.43,0.00019483,2]
[388513129,1759227040655,-2752.78,0.00019483,2]
[388513130,1759227040664,-500.0,0.00019483,2]
[388513131,1759227040673,-1721.4,0.00019483,2]
[388513132,1759227040682,-500.0,0.00019483,2]
[388513133,1759227040692,-500.0,0.00019483,2]
[388513134,1759227040701,-500.0,0.00019483,2]
[388513135,1759227040711,-500.0,0.00019483,2]
[388513136,1759227040720,-902.41,0.00019483,2]
[388513137,1759227040730,-727.01,0.00019483,2]
[388513138,1759227040739,-3321.4,0.00019483,2]
[388513139,1759227040748,-796.82,0.00019483,2]
[388513140,1759227040760,-594.52,0.00019483,2]
[388513141,1759227040769,-500.0,0.00019483,2]
[388513142,1759227040779,-839.29,0.00019483,2]
[388513143,1759227040788,-2573.25,0.00019483,2]
[388513144,1759227040798,-816.57,0.00019483,2]
[388513145,1759227040808,-526.0,0.00019483,2]
[388513146,1759227040818,-500.0,0.00019483,2]
[388513147,1759227040828,-332.19685212,0.00019483,2]
[388513148,1759227040839,-2010.49,0.00019483,2]
[388513149,1759227040849,-500.0,0.00019483,2]
[388513150,1759227040859,-500.0,0.00019483,2]
[388513151,1759227040868,-550.93,0.00019483,2]
[388513152,1759227040878,-500.0,0.00019483,2]
[388513153,1759227040888,-500.0,0.00019483,2]
[388513154,1759227040897,-500.0,0.00019483,2]
[388513155,1759227040907,-1216.67,0.00019483,2]
[388513156,1759227040917,-500.0,0.00019483,2]
[388513157,1759227040928,-500.0,0.00019483,2]
[388513158,1759227040937,-500.0,0.00019483,2]
[388513159,1759227040947,-500.0,0.00019483,2]
[388513160,1759227040956,-536.56,0.00019483,2]
[388513161,1759227040966,-500.0,0.00019483,2]
[388513162,1759227040975,-500.0,0.00019483,2]
[388513163,1759227040984,-1726.97,0.00019483,2]
[388513164,1759227040994,-515.76,0.00019483,2]
[388513165,1759227041004,-2246.13,0.00019483,2]
[388513166,1759227041014,-738.31,0.00019483,2]
[388513167,1759227041024,-500.0,0.00019483,2]
[388513168,1759227041033,-500.0,0.00019483,2]
[388513169,1759227041044,-797.42,0.00019483,2]
[388513170,1759227041054,-1667.26,0.00019483,2]
[388513171,1759227041063,-500.0,0.00019483,2]
[388513172,1759227041074,-500.0,0.00019483,2]
[388513173,1759227041083,-500.0,0.00019483,2]
[388513174,1759227041093,-500.0,0.00019483,2]
[388513175,1759227041103,-500.0,0.00019483,2]
[388513176,1759227041112,-785.47,0.00019483,2]
[388513177,1759227041122,-3566.96,0.00019483,2]
[388513178,1759227041131,-500.0,0.00019483,2]
[388513179,1759227041141,-500.0,0.00019483,2]
[388513180,1759227041150,-2046.36,0.00019483,2]
[388513181,1759227041160,-500.0,0.00019483,2]
[388513182,1759227041169,-658.33,0.00019483,2]
[388513183,1759227041179,-500.0,0.00019483,2]
[388513184,1759227041188,-1483.93,0.00019483,2]
[388513185,1759227041198,-500.0,0.00019483,2]
[388513186,1759227041207,-500.0,0.00019483,2]
[388513187,1759227041216,-500.0,0.00019483,2]
[388513188,1759227041226,-500.0,0.00019483,2]
[388513189,1759227041236,-6066.51,0.00019483,2]
[388513190,1759227041246,-500.0,0.00019483,2]
[388513191,1759227041256,-500.0,0.00019483,2]
[388513192,1759227041266,-500.0,0.00019483,2]
[388513193,1759227041275,-500.0,0.00019483,2]
[388513194,1759227041285,-1702.19,0.00019483,2]
[388513195,1759227041295,-500.0,0.00019483,2]
[388513196,1759227041306,-1617.6,0.00019483,2]
[388513197,1759227041316,-804.64,0.00019483,2]
[388513198,1759227041326,-500.0,0.00019483,2]
[388513199,1759227041336,-500.0,0.00019483,2]
[388513200,1759227041345,-500.0,0.00019483,2]
[388513201,1759227041355,-500.0,0.00019483,2]
[388513202,1759227041369,-500.0,0.00019483,2]
[388513203,1759227041378,-1728.71,0.00019483,2]
[388513204,1759227041388,-4577.69,0.00019483,2]
[388513205,1759227041399,-500.0,0.00019483,2]
[388513206,1759227041408,-500.0,0.00019483,2]
[388513207,1759227041419,-4342.02,0.00019483,2]
[388513208,1759227041429,-500.0,0.00019483,2]
[388513209,1759227041439,-500.0,0.00019483,2]
[388513210,1759227041449,-500.0,0.00019483,2]
[388513211,1759227041459,-927.43,0.00019483,2]
[388513212,1759227041469,-4243.23,0.00019483,2]
[388513213,1759227041479,-1606.77,0.00019483,2]
[388513214,1759227041488,-500.0,0.00019483,2]
[388513215,1759227041497,-500.0,0.00019483,2]
[388513216,1759227041507,-500.0,0.00019483,2]
[388513217,1759227041517,-500.0,0.00019483,2]
[388513218,1759227041528,-500.0,0.00019483,2]
[388513219,1759227041537,-4911.35,0.00019483,2]
[388513220,1759227041547,-2541.23,0.00019483,2]
[388513221,1759227041558,-500.0,0.00019483,2]
[388513222,1759227041570,-500.0,0.00019483,2]
[388513223,1759227041581,-500.0,0.00019483,2]
[388513224,1759227041591,-500.0,0.00019483,2]
[388513225,1759227041602,-500.0,0.00019483,2]
[388513226,1759227041612,-500.0,0.00019483,2]
[388513227,1759227041622,-500.0,0.00019483,2]
[388513228,1759227041632,-2694.58,0.00019483,2]
[388513229,1759227041642,-4402.33,0.00019483,2]
[388513230,1759227041652,-500.0,0.00019483,2]
[388513231,1759227041661,-1883.4,0.00019483,2]
[388513232,1759227041671,-500.0,0.00019483,2]
[388513233,1759227041680,-500.0,0.00019483,2]
[388513234,1759227041691,-500.0,0.00019483,2]
[388513235,1759227041700,-500.0,0.00019483,2]
[388513236,1759227041710,-500.0,0.00019483,2]
[388513237,1759227041720,-1254.09,0.00019483,2]
[388513238,1759227041731,-1579.52,0.00019483,2]
[388513239,1759227041742,-1094.09,0.00019483,2]
[388513240,1759227041753,-500.0,0.00019483,2]
[388513241,1759227041763,-500.0,0.00019483,2]
[388513242,1759227041772,-2793.28,0.00019483,2]
[388513243,1759227041782,-500.0,0.00019483,2]
[388513244,1759227041792,-500.0,0.00019483,2]
[388513245,1759227041802,-500.0,0.00019483,2]
[388513246,1759227041812,-500.0,0.00019483,2]
[388513247,1759227041823,-500.0,0.00019483,2]
[388513248,1759227041833,-500.0,0.00019483,2]
[388513249,1759227041843,-500.0,0.00019483,2]
[388513250,1759227041853,-500.0,0.00019483,2]
[388513251,1759227041863,-1094.49,0.00019483,2]
[388513252,1759227041872,-2121.66,0.00019483,2]
[388513253,1759227041882,-5129.37,0.00019483,2]
[388513254,1759227041892,-500.0,0.00019483,2]
[388513255,1759227041902,-500.0,0.00019483,2]
[388513256,1759227041912,-500.0,0.00019483,2]
[388513257,1759227041922,-500.0,0.00019483,2]
[388513258,1759227041932,-500.0,0.00019483,2]
[388513259,1759227041942,-3276.48,0.00019483,2]
[388513260,1759227041952,-939.41,0.00019483,2]
[388513261,1759227041962,-500.0,0.00019483,2]
[388513262,1759227041972,-500.0,0.00019483,2]
[388513264,1759227041982,-500.0,0.00019483,2]
[388513265,1759227041991,-500.0,0.00019483,2]
[388513266,1759227042002,-500.0,0.00019483,2]
[388513267,1759227042012,-500.0,0.00019483,2]
[388513268,1759227042022,-500.0,0.00019483,2]
[388513269,1759227042032,-500.0,0.00019483,2]
[388513270,1759227042042,-2640.34,0.00019483,2]
[388513271,1759227042052,-500.0,0.00019483,2]
[388513272,1759227042061,-1010.74,0.00019483,2]
[388513273,1759227042072,-500.0,0.00019483,2]
[388513274,1759227042082,-500.0,0.00019483,2]
[388513276,1759227042092,-2334.84,0.00019483,2]
[388513277,1759227042102,-500.0,0.00019483,2]
[388513278,1759227042112,-500.0,0.00019483,2]
[388513279,1759227042122,-500.0,0.00019483,2]
[388513280,1759227042132,-1291.32,0.00019483,2]
[388513281,1759227042142,-500.0,0.00019483,2]
[388513282,1759227042151,-584.58,0.00019483,2]
[388513283,1759227042161,-500.0,0.00019483,2]
[388513284,1759227042171,-500.0,0.00019483,2]
[388513285,1759227042180,-500.0,0.00019483,2]
[388513286,1759227042190,-500.0,0.00019483,2]
[388513287,1759227042199,-631.27,0.00019483,2]
[388513288,1759227042209,-932.65,0.00019483,2]
[388513289,1759227042219,-1699.57,0.00019483,2]
[388513290,1759227042229,-500.0,0.00019483,2]
[388513291,1759227042239,-500.0,0.00019483,2]
[388513292,1759227042249,-2400.1,0.00019483,2]
[388513293,1759227042259,-557.78,0.00019483,2]
[388513294,1759227042269,-500.0,0.00019483,2]
[388513295,1759227042280,-2804.45,0.00019483,2]
[388513296,1759227042290,-2766.36,0.00019483,2]
[388513297,1759227042302,-500.0,0.00019483,2]
[388513298,1759227042710,-4169.35,0.00019483,2]
[388513299,1759227042746,-1033.93,0.00019483,2]
[388513300,1759227042755,-1699.31,0.00019483,2]
[388513301,1759227042765,-500.0,0.00019483,2]
[388513302,1759227042775,-1266.74,0.00019483,2]
[388513303,1759227042785,-500.0,0.00019483,2]
[388513304,1759227042795,-1093.04,0.00019483,2]
[388513305,1759227042804,-1597.47,0.00019483,2]
[388513306,1759227042814,-500.0,0.00019483,2]
[388513307,1759227042824,-536.8,0.00019483,2]
[388513308,1759227042833,-2465.47,0.00019483,2]
[388513309,1759227042843,-500.0,0.00019483,2]
[388513310,1759227042852,-500.0,0.00019483,2]
[388513311,1759227042862,-237.58863196,0.00019483,2]
[388513312,1759227042871,-500.0,0.00019483,2]
[388513313,1759227042881,-500.0,0.00019483,2]
[388513314,1759227042891,-500.0,0.00019483,2]
[388513315,1759227042901,-2462.6,0.00019483,2]
[388513316,1759227042911,-857.69,0.00019483,2]
[388513317,1759227042922,-500.0,0.00019483,2]
[388513318,1759227042931,-500.0,0.00019483,2]
[388513319,1759227042941,-500.0,0.00019483,2]
[388513320,1759227042951,-500.0,0.00019483,2]
[388513321,1759227042961,-500.0,0.00019483,2]
[388513322,1759227042971,-500.0,0.00019483,2]
[388513323,1759227042981,-1899.7,0.00019483,2]
[388513324,1759227042991,-500.0,0.00019483,2]
[388513326,1759227043000,-500.0,0.00019483,2]
[388513327,1759227043010,-802.62,0.00019483,2]
[388513328,1759227043020,-500.0,0.00019483,2]
[388513329,1759227043029,-500.0,0.00019483,2]
[388513330,1759227043040,-500.0,0.00019483,2]
[388513332,1759227043052,-500.0,0.00019483,2]
[388513334,1759227043063,-500.0,0.00019483,2]
[388513335,1759227043073,-3771.03,0.00019483,2]
[388513336,1759227043083,-500.0,0.00019483,2]
[388513337,1759227043092,-505.48432646,0.00019483,2]
[388513338,1759227043102,-500.0,0.00019483,2]
[388513339,1759227043111,-500.0,0.00019483,2]
[388513340,1759227043120,-500.0,0.00019483,2]
[388513341,1759227043131,-500.0,0.00019483,2]
[388513342,1759227043140,-3026.89,0.00019483,2]
[388513343,1759227043150,-500.0,0.00019483,2]
[388513344,1759227043159,-1214.74,0.00019483,2]
[388513345,1759227043168,-500.0,0.00019483,2]
[388513346,1759227043177,-500.0,0.00019483,2]
[388513347,1759227043187,-1106.33,0.00019483,2]
[388513348,1759227043196,-500.0,0.00019483,2]
[388513349,1759227043207,-864.97,0.00019483,2]
[388513350,1759227043217,-500.0,0.00019483,2]
[388513351,1759227043227,-500.0,0.00019483,2]
[388513352,1759227043237,-1303.91,0.00019483,2]
[388513353,1759227043247,-500.0,0.00019483,2]
[388513354,1759227043257,-150.0,0.00019483,2]
[388513355,1759227043266,-500.0,0.00019483,2]
[388513356,1759227043276,-150.0,0.00019483,2]
[388513357,1759227043286,-500.0,0.00019483,2]
[388513358,1759227043298,-151.51253888,0.00019483,2]
[388513359,1759227043308,-500.0,0.00019483,2]
[388513361,1759227043318,-500.0,0.00019483,2]
[388513362,1759227043327,-651.39,0.00019483,2]
[388513363,1759227043339,-500.0,0.00019483,2]
[388513364,1759227043349,-500.0,0.00019483,2]
[388513365,1759227043362,-500.0,0.00019483,2]
[388513366,1759227043372,-500.0,0.00019483,2]
[388513367,1759227043381,-1780.32,0.00019483,2]
[388513368,1759227043392,-1352.34,0.00019483,2]
[388513369,1759227043402,-500.0,0.00019483,2]
[388513370,1759227043411,-500.0,0.00019483,2]
[388513371,1759227043420,-162.187437,0.00019483,2]
[388513372,1759227043431,-500.0,0.00019483,2]
[388513373,1759227043445,-500.0,0.00019483,2]
[388513374,1759227043455,-500.0,0.00019483,2]
[388513375,1759227043465,-162.187437,0.00019483,2]
[388513376,1759227043475,-162.187437,0.00019483,2]
[388513377,1759227043485,-500.0,0.00019483,2]
[388513378,1759227043496,-502.48,0.00019483,2]
[388513379,1759227043505,-297.22671453,0.00019483,2]
[388513380,1759227043515,-500.0,0.00019483,2]
[388513381,1759227043525,-162.187437,0.00019483,2]
[388513382,1759227043535,-500.0,0.00019483,2]
[388513383,1759227043544,-768.68,0.00019483,2]
[388513384,1759227043555,-500.0,0.00019483,2]
[388513385,1759227043565,-1442.68,0.00019483,2]
[388513386,1759227043575,-151.0,0.00019483,2]
[388513387,1759227043584,-500.0,0.00019483,2]
[388513388,1759227043594,-151.0,0.00019483,2]
[388513389,1759227043603,-151.374353,0.00019483,2]
[388513390,1759227043613,-500.0,0.00019483,2]
[388513391,1759227043622,-500.0,0.00019483,2]
[388513392,1759227043632,-500.0,0.00019483,2]
[388513393,1759227043642,-500.0,0.00019483,2]
[388513394,1759227043651,-151.0,0.00019483,2]
[388513395,1759227043661,-151.0,0.00019483,2]
[388513396,1759227043671,-1443.94,0.00019483,2]
[388513397,1759227043680,-500.0,0.00019483,2]
[388513398,1759227043690,-500.0,0.00019483,2]
[388513399,1759227043700,-1617.9,0.00019483,2]
[388513400,1759227043711,-974.49,0.00019483,2]
[388513401,1759227043722,-500.0,0.00019483,2]
[388513402,1759227043732,-500.0,0.00019483,2]
[388513403,1759227043742,-500.0,0.00019483,2]
[388513404,1759227043753,-3617.44,0.00019483,2]
[388513405,1759227043763,-176.858792,0.00019483,2]
[388513406,1759227043773,-500.0,0.00019483,2]
[388513407,1759227043783,-4070.88,0.00019483,2]
[388513408,1759227043794,-176.858792,0.00019483,2]
[388513409,1759227043804,-500.0,0.00019483,2]
[388513410,1759227043813,-544.91,0.00019483,2]
[388513411,1759227043823,-500.0,0.00019483,2]
[388513412,1759227043833,-500.0,0.00019483,2]
[388513413,1759227043844,-176.858792,0.00019483,2]
[388513414,1759227043853,-176.858792,0.00019483,2]
[388513416,1759227043863,-500.0,0.00019483,2]
[388513417,1759227043873,-243.77539924,0.00019483,2]
[388513418,1759227043883,-774.07,0.00019483,2]
[388513419,1759227043893,-500.0,0.00019483,2]
[388513420,1759227043903,-1260.81,0.00019483,2]
[388513421,1759227043913,-500.0,0.00019483,2]
[388513422,1759227043922,-500.0,0.00019483,2]
[388513423,1759227043932,-500.0,0.00019483,2]
[388513424,1759227043942,-788.86,0.00019483,2]
[388513425,1759227043952,-500.0,0.00019483,2]
[388513426,1759227043962,-500.0,0.00019483,2]
[388513427,1759227043972,-715.54,0.00019483,2]
[388513428,1759227043981,-500.0,0.00019483,2]
[388513429,1759227043991,-668.46,0.00019483,2]
[388513430,1759227044001,-500.0,0.00019483,2]
[388513431,1759227044011,-2568.34,0.00019483,2]
[388513432,1759227044021,-876.53,0.00019483,2]
[388513433,1759227044031,-500.0,0.00019483,2]
[388513434,1759227044043,-500.0,0.00019483,2]
[388513435,1759227044053,-500.0,0.00019483,2]
[388513436,1759227044063,-500.0,0.00019483,2]
[388513437,1759227044073,-500.0,0.00019483,2]
[388513438,1759227044083,-1287.54,0.00019483,2]
[388513439,1759227044092,-2729.01,0.00019483,2]
[388513440,1759227044102,-1345.94,0.00019483,2]
[388513441,1759227044111,-2055.07,0.00019483,2]
[388513442,1759227044121,-500.0,0.00019483,2]
[388513443,1759227044131,-500.0,0.00019483,2]
[388513444,1759227044140,-348.37935634,0.00019483,2]
[388513445,1759227044150,-500.0,0.00019483,2]
[388513446,1759227044160,-500.0,0.00019483,2]
[388513447,1759227044169,-2400.4,0.00019483,2]
[388513448,1759227044179,-2412.43,0.00019483,2]
[388513449,1759227044188,-500.0,0.00019483,2]
[388513450,1759227044197,-500.0,0.00019483,2]
[388513451,1759227044207,-151.0,0.00019483,2]
[388513452,1759227044216,-500.0,0.00019483,2]
[388513453,1759227044225,-500.0,0.00019483,2]
[388513454,1759227044235,-500.0,0.00019483,2]
[388513455,1759227044244,-500.0,0.00019483,2]
[388513456,1759227044255,-1522.75,0.00019483,2]
[388513457,1759227044265,-154.676001,0.00019483,2]
[388513458,1759227044275,-500.0,0.00019483,2]
[388513459,1759227044285,-150.0,0.00019483,2]
[388513460,1759227044294,-898.75,0.00019483,2]
[388513461,1759227044304,-151.0,0.00019483,2]
[388513462,1759227044313,-500.0,0.00019483,2]
[388513463,1759227044322,-500.0,0.00019483,2]
[388513464,1759227044331,-152.37199,0.00019483,2]
[388513465,1759227044341,-500.0,0.00019483,2]
[388513466,1759227044351,-151.0,0.00019483,2]
[388513467,1759227044363,-995.56,0.00019483,2]
[388513468,1759227044374,-151.0,0.00019483,2]
[388513469,1759227044383,-151.0,0.00019483,2]
[388513470,1759227044392,-2352.03,0.00019483,2]
[388513471,1759227044403,-500.0,0.00019483,2]
[388513472,1759227044412,-670.77,0.00019483,2]
[388513473,1759227044421,-500.0,0.00019483,2]
[388513474,1759227044431,-151.0,0.00019483,2]
[388513475,1759227044442,-151.0,0.00019483,2]
[388513476,1759227044451,-500.0,0.00019483,2]
[388513477,1759227044461,-500.0,0.00019483,2]
[388513478,1759227044470,-2470.02,0.00019483,2]
[388513479,1759227044479,-191.925928,0.00019483,2]
[388513480,1759227044489,-221.808555,0.00019483,2]
[388513481,1759227044498,-500.0,0.00019483,2]
[388513482,1759227044507,-500.0,0.00019483,2]
[388513483,1759227044517,-191.925928,0.00019483,2]
[388513484,1759227044527,-191.925928,0.00019483,2]
[388513485,1759227044537,-151.0,0.00019483,2]
[388513486,1759227044546,-500.0,0.00019483,2]
[388513487,1759227044555,-500.0,0.00019483,2]
[388513488,1759227044565,-191.925928,0.00019483,2]
[388513489,1759227044574,-500.0,0.00019483,2]
[388513490,1759227044591,-628.81,0.00019483,2]
[388513491,1759227044601,-500.0,0.00019483,2]
[388513492,1759227044612,-500.0,0.00019483,2]
[388513493,1759227044623,-500.0,0.00019483,2]
[388513494,1759227044635,-151.0,0.00019483,2]
[388513495,1759227044646,-500.0,0.00019483,2]
[388513496,1759227044656,-500.0,0.00019483,2]
[388513497,1759227044667,-500.0,0.00019483,2]
[388513498,1759227044677,-500.0,0.00019483,2]
[388513499,1759227044688,-151.0,0.00019483,2]
[388513500,1759227044698,-3574.31,0.00019483,2]
[388513501,1759227044709,-5800.06,0.00019483,2]
[388513502,1759227044720,-151.0,0.00019483,2]
[388513503,1759227044731,-500.0,0.00019483,2]
[388513504,1759227044741,-151.0,0.00019483,2]
[388513505,1759227044752,-4322.16,0.00019483,2]
[388513506,1759227044763,-752.73,0.00019483,2]
[388513507,1759227044773,-500.0,0.00019483,2]
[388513508,1759227044784,-151.0,0.00019483,2]
[388513509,1759227044794,-500.0,0.00019483,2]
[388513510,1759227044805,-500.0,0.00019483,2]
[388513511,1759227044815,-500.0,0.00019483,2]
[388513512,1759227044826,-500.0,0.00019483,2]
[388513513,1759227044836,-3929.91,0.00019483,2]
[388513514,1759227044846,-500.0,0.00019483,2]
[388513515,1759227044857,-500.0,0.00019483,2]
[388513516,1759227044869,-155.496877,0.00019483,2]
[388513517,1759227044879,-2867.68,0.00019483,2]
[388513518,1759227044890,-805.4,0.00019483,2]
[388513519,1759227044901,-500.0,0.00019483,2]
[388513520,1759227044912,-500.0,0.00019483,2]
[388513521,1759227044922,-500.0,0.00019483,2]
[388513522,1759227044933,-151.0,0.00019483,2]
[388513523,1759227044943,-478.237203,0.00019483,2]
[388513524,1759227044953,-500.0,0.00019483,2]
[388513525,1759227044963,-478.237203,0.00019483,2]
[388513526,1759227044982,-500.0,0.00019483,2]
[388513527,1759227044993,-500.0,0.00019483,2]
[388513528,1759227045004,-500.0,0.00019483,2]
[388513529,1759227045015,-842.21,0.00019483,2]
[388513530,1759227045026,-478.237203,0.00019483,2]
[388513531,1759227045036,-500.0,0.00019483,2]
[388513532,1759227045048,-500.0,0.00019483,2]
[388513533,1759227045059,-500.0,0.00019483,2]
[388513534,1759227045070,-478.237203,0.00019483,2]
[388513535,1759227045081,-500.0,0.00019483,2]
[388513536,1759227045092,-1263.74,0.00019483,2]
[388513537,1759227045103,-150.0,0.00019483,2]
[388513538,1759227045114,-500.0,0.00019483,2]
[388513539,1759227045124,-500.0,0.00019483,2]
[388513540,1759227045135,-150.0,0.00019483,2]
[388513541,1759227045146,-401.04308253,0.00019483,2]
[388513542,1759227045156,-500.0,0.00019483,2]
[388513543,1759227045167,-500.0,0.00019483,2]
[388513544,1759227045177,-500.0,0.00019483,2]
[388513545,1759227045188,-3977.93,0.00019483,2]
[388513546,1759227045198,-151.0,0.00019483,2]
[388513547,1759227045208,-3074.29,0.00019483,2]
[388513548,1759227045219,-151.0,0.00019483,2]
[388513549,1759227045442,-500.0,0.00019483,2]
[388513550,1759227045452,-500.0,0.00019483,2]
[388513551,1759227045461,-500.0,0.00019483,2]
[388513552,1759227045471,-500.0,0.00019483,2]
[388513553,1759227045480,-151.0,0.00019483,2]
[388513554,1759227045489,-2549.84,0.00019483,2]
[388513555,1759227045498,-500.0,0.00019483,2]
[388513556,1759227045508,-151.0,0.00019483,2]
[388513557,1759227045517,-500.0,0.00019483,2]
[388513558,1759227045526,-500.0,0.00019483,2]
[388513559,1759227045536,-3257.95,0.00019483,2]
[388513560,1759227045545,-500.0,0.00019483,2]
[388513561,1759227045554,-500.0,0.00019483,2]
[388513562,1759227045564,-201.207258,0.00019483,2]
[388513563,1759227045574,-201.207258,0.00019483,2]
[388513564,1759227045583,-3449.69,0.00019483,2]
[388513565,1759227045593,-500.0,0.00019483,2]
[388513566,1759227045602,-500.0,0.00019483,2]
[388513567,1759227045614,-201.207258,0.00019483,2]
[388513568,1759227045631,-500.0,0.00019483,2]
[388513569,1759227045646,-500.0,0.00019483,2]
[388513570,1759227045656,-201.207258,0.00019483,2]
[388513571,1759227045665,-500.0,0.00019483,2]
[388513572,1759227045675,-151.0,0.00019483,2]
[388513573,1759227045684,-151.0,0.00019483,2]
[388513574,1759227045694,-2307.95,0.00019483,2]
[388513575,1759227045705,-629.58,0.00019483,2]